bitfinex/quotes_ETHUSD_20220227
["timestamp","ask_amount","ask_price","bid_price","bid_amount"]
[1645975843886,0.7439,2818.2,2816.3,0.3629]
[1645975844089,1.10079594,2817.9,2816.5,11.3829]
[1645975844291,0.381,2818.2,2816.5,0.3629]
[1645975844488,0.381,2818.2,2816.3,0.8880215]
[1645975844689,0.381,2818.2,2816.4,0.3629]
[1645975844690,0.7439,2818.2,2816.4,0.3629]
[1645975844889,0.381,2818.2,2816.4,0.3629]
[1645975845092,0.381,2818.2,2816.4,3.87584266]
[1645975845320,0.381,2818.2,2816.6,11.3829]
[1645975845520,0.00549812,2817.4,2816.1,1.18025597]
[1645975845720,0.00549812,2817.4,2816.0,2.3927]
[1645975846320,0.431,2817.6,2816.0,2.3927]
[1645975846521,0.00549875,2816.8,2816.0,2.3927]
[1645975847326,0.00549875,2816.8,2815.7,0.1419]
[1645975847722,0.00549875,2816.8,2815.6,0.1419]
[1645975847921,0.00549906,2816.5,2815.6,0.1419]
[1645975848529,0.00549906,2816.5,2814.9,2.4766]
[1645975848721,1.14201008,2815.7,2814.9,2.4766]
[1645975848987,0.00549906,2816.5,2815.2,0.8883447]
[1645975849177,0.3629,2817.0,2815.3,3.8629]
[1645975849178,0.00549942,2816.2,2815.3,3.8629]
[1645975849378,0.00549942,2816.2,2815.4,0.1419]
[1645975849879,0.25,2816.7,2815.4,0.1419]
[1645975850281,0.00482653,2815.9,2815.6,12.2711199]
[1645975850678,0.00482653,2815.9,2815.8,11.3829]
[1645975850679,2.653e-05,2815.9,2815.8,11.3829]
[1645975850880,2.653e-05,2815.9,2815.8,14.8829]
[1645975851083,0.25,2816.7,2815.8,14.8829]
[1645975852181,0.25,2816.7,2815.9,0.1419]
[1645975852381,1.43204584,2816.9,2816.1,0.3629]
[1645975852826,1.43204584,2816.9,2816.0,0.8880184]
[1645975853026,0.25,2817.4,2816.0,0.8880184]
[1645975853830,0.00549875,2816.8,2815.6,3.5]
[1645975854034,1.0681625,2816.2,2815.5,1.7763521]
[1645975854233,0.00549875,2816.8,2815.1,2.0546169]
[1645975854431,0.00549875,2816.8,2815.1,0.8883169]
[1645975854737,0.00549875,2816.8,2814.9,0.1419]
[1645975854738,0.54847983,2816.8,2814.9,0.1419]
[1645975854932,0.97947983,2816.8,2814.9,0.1419]
[1645975855131,0.00549953,2816.1,2814.9,0.1419]
[1645975855334,0.00549953,2816.1,2814.8,0.52406796]
[1645975855534,0.00549953,2816.1,2814.9,0.8884009]
[1645975855933,1.27398108,2816.8,2814.9,0.8884009]
[1645975856136,1.27398108,2816.8,2814.9,4.3884009]
[1645975856335,1.44377774,2815.9,2814.9,0.8884009]
[1645975856574,1.44377774,2815.9,2814.8,0.16116632]
[1645975857573,0.00549908,2816.0,2814.8,0.16116609]
[1645975858274,0.3,2816.3,2814.8,0.13915997]
[1645975858475,0.731,2816.3,2814.8,0.13915997]
[1645975858686,0.00481889,2816.0,2814.8,0.15844384]
[1645975858878,1.29369025,2815.8,2814.8,0.15844384]
[1645975859081,0.00481889,2816.0,2814.8,0.15844384]
[1645975859479,1.25147,2816.3,2814.8,0.13915997]
[1645975859682,0.88857,2816.3,2814.8,0.13915997]
[1645975859880,0.25,2816.4,2814.8,0.15844384]
[1645975859881,0.00481889,2816.0,2814.8,0.15844384]
[1645975860327,1.13050996,2815.6,2814.8,0.15844384]
[1645975861330,1.13050996,2815.6,2814.8,0.13915997]
[1645975861926,1.13050996,2815.6,2814.8,0.13819997]
[1645975862730,0.142435,2815.8,2814.8,0.13819997]
[1645975863030,0.00485286,2816.0,2814.8,0.13915997]
[1645975863331,1.19351286,2816.0,2814.8,0.13915997]
[1645975863529,1.19354393,2816.0,2814.8,0.13819997]
[1645975863729,1.41195947,2815.9,2814.8,0.13819997]
[1645975863994,0.25,2815.6,2814.7,0.01954477]
[1645975864190,0.431,2815.5,2814.7,0.01954477]
[1645975864589,0.431,2815.5,2814.4,0.00251759]
[1645975864590,0.731,2815.5,2814.4,0.00251759]
[1645975864789,1.15235628,2815.4,2814.4,0.00155759]
[1645975864992,1.14756345,2814.5,2814.4,0.00155759]
[1645975866793,1.31996,2815.0,2814.4,0.00155759]
[1645975866995,0.25,2815.1,2814.4,0.00155759]
[1645975867818,1.34201569,2814.8,2814.4,0.00155759]
[1645975868420,1.34201569,2814.8,2814.6,0.0054068]
[1645975869232,1.34201569,2814.8,2814.4,0.00155759]
[1645975869233,1.64201569,2814.8,2814.4,0.00155759]
[1645975869527,1.64201569,2814.8,2814.6,0.00549803]
[1645975871776,1.64201569,2814.8,2814.4,0.00155759]
[1645975871972,1.64201569,2814.8,2814.6,0.00530884]
[1645975872176,2.02814,2815.1,2814.6,0.00530884]
[1645975872177,0.25,2815.1,2814.6,0.00530884]
[1645975872778,0.25,2815.1,2814.4,0.00155759]
[1645975873179,0.25,2815.1,2814.6,0.00512806]
[1645975873378,1.43009974,2815.0,2814.6,0.00512806]
[1645975873979,1.43009974,2815.0,2814.4,0.00155759]
[1645975874383,1.43009974,2815.0,2814.6,0.00512802]
[1645975874681,1.38009974,2815.0,2814.6,0.00512802]
[1645975875079,0.25,2815.1,2814.6,0.00512802]
[1645975875321,0.25,2815.1,2814.4,0.00155759]
[1645975875521,0.25,2815.1,2814.7,0.00293502]
[1645975876328,0.25,2815.1,2814.4,0.00155759]
[1645975876527,0.25,2815.1,2814.4,0.01377949]
[1645975876726,0.00548918,2815.7,2814.7,0.00549118]
[1645975876930,0.00548918,2815.7,2814.8,11.3829]
[1645975877130,0.25,2815.5,2815.0,13.1593099]
[1645975877326,8.918e-05,2815.7,2815.1,15.08367289]
[1645975877525,0.25,2816.4,2815.1,15.08367289]
[1645975877526,0.25,2815.6,2815.2,0.1419]
[1645975877928,0.3629,2817.3,2815.1,0.3629]
[1645975878126,0.25,2816.3,2815.1,3.5]
[1645975878327,0.25,2816.3,2815.0,3.5528494]
[1645975878530,0.25,2816.3,2815.4,1.2511009]
[1645975878827,0.25,2816.3,2815.6,11.3829]
[1645975879071,0.25,2816.3,2815.6,0.08418464]
[1645975879273,0.25,2817.0,2815.6,0.08418464]
[1645975879670,1.2995255,2816.3,2815.6,0.08418464]
[1645975879871,0.25,2816.1,2815.6,0.08418464]
[1645975880674,0.25,2816.1,2815.6,0.44708464]
[1645975880876,0.25,2816.1,2815.6,11.46708464]
[1645975881076,0.25,2816.1,2815.6,0.08418464]
[1645975881475,0.00548943,2816.0,2815.6,0.08418464]
[1645975882477,0.25,2816.1,2815.6,0.08418464]
[1645975882746,0.00548948,2815.9,2815.6,0.08418464]
[1645975883240,0.20548948,2816.1,2815.6,0.08418464]
[1645975883442,0.20548948,2816.1,2815.2,0.00549099]
[1645975883839,0.20548948,2816.1,2814.9,1.2494]
[1645975884439,1.12055326,2815.5,2814.9,1.2494]
[1645975884644,1.12055326,2815.5,2814.6,0.06774168]
[1645975884840,0.25,2815.3,2814.6,0.06678168]
[1645975885340,0.25,2815.3,2814.4,0.00155759]
[1645975885541,1.39048501,2814.6,2814.4,0.00155759]
[1645975885744,0.25,2815.3,2814.4,0.00155759]
[1645975886973,1.27622364,2814.4,2813.8,8.9634129]
[1645975887177,1.52622364,2814.4,2813.8,8.9634129]
[1645975887572,1.52622364,2814.4,2814.3,0.02196739]
[1645975888373,1.52622364,2814.4,2813.8,8.9634129]
[1645975888374,0.25,2814.4,2813.8,8.9634129]
[1645975888775,0.25,2814.4,2814.2,0.00549155]
[1645975889579,0.25,2814.4,2813.8,8.9634129]
[1645975889785,0.25,2814.4,2813.9,1.50291272]
[1645975889980,0.25,2814.4,2814.2,0.0054916]
[1645975890825,0.25,2814.4,2813.9,0.00096]
[1645975891029,1.43803579,2814.3,2813.8,8.9634129]
[1645975891226,1.43803579,2814.3,2814.2,0.0054916]
[1645975892226,1.43803579,2814.3,2813.9,0.00096]
[1645975892437,1.43803579,2814.3,2814.1,0.00549165]
[1645975893627,1.43803579,2814.3,2814.1,0.0054917]
[1645975894878,1.43803579,2814.3,2813.6,0.02063185]
[1645975894879,1.73803579,2814.3,2813.6,0.02063185]
[1645975895278,12.75803579,2814.3,2813.6,0.02063185]
[1645975895475,12.75803579,2814.3,2813.6,0.01063185]
[1645975895775,13.75803579,2814.3,2812.7,0.00096]
[1645975895976,0.25,2813.8,2812.7,1.50438378]
[1645975896176,0.25,2813.8,2812.8,0.00096]
[1645975897382,1.08401387,2813.0,2812.8,0.00096]
[1645975897577,8.0114,2813.9,2812.3,1.50459649]
[1645975897840,0.25,2813.1,2812.3,1.50459649]
[1645975899441,0.25,2813.1,2812.4,3.8629]
[1645975899640,0.25,2813.1,2812.6,0.00524007]
[1645975899837,0.25,2813.1,2812.6,0.14734007]
[1645975900239,0.25,2813.1,2812.6,0.00524007]
[1645975900447,0.25,2813.1,2812.3,0.00096]
[1645975900642,0.25,2813.1,2812.4,0.1421]
[1645975900841,0.25,2813.1,2812.5,1.50366815]
[1645975901039,0.25,2813.1,2812.6,0.1421]
[1645975901339,0.25,2813.1,2812.4,0.1421]
[1645975901577,0.25,2813.1,2812.2,0.1421]
[1645975901777,0.25,2813.1,2812.3,1.5037335]
[1645975901978,0.25,2813.1,2812.4,0.1421]
[1645975902277,1.36774438,2812.8,2812.4,0.1421]
[1645975902478,0.25,2813.1,2812.2,0.1421]
[1645975902678,0.25,2813.1,2812.3,1.50371616]
[1645975903180,0.25,2813.1,2812.3,1.50467616]
[1645975903578,1.36794067,2812.8,2812.3,1.50467616]
[1645975903778,0.25,2813.1,2812.1,0.21115443]
[1645975903978,0.25,2813.1,2812.2,1.50374308]
[1645975904185,0.25,2813.1,2812.2,1.00470308]
[1645975904384,0.25,2813.1,2812.4,0.0053203]
[1645975905447,0.25,2813.1,2812.2,0.00096]
[1645975905647,0.25,2813.1,2812.6,0.00532009]
[1645975906447,0.25,2813.1,2812.2,0.02224355]
[1645975906448,75.0,2812.9,2812.2,0.02224355]
[1645975906649,75.0,2812.9,2812.2,0.00096]
[1645975906848,75.0,2812.9,2812.0,6.95565754]
[1645975907048,75.0,2812.9,2811.9,7.36]
[1645975907448,0.25,2812.6,2811.9,7.36]
[1645975907850,1.33475641,2812.8,2812.6,0.5]
[1645975908454,75.0,2812.9,2812.6,0.5]
[1645975909478,1.03853297,2812.8,2812.6,0.5]
[1645975909879,3.5,2812.7,2812.6,0.5]
[1645975910285,1.03853297,2812.8,2812.6,0.5]
[1645975910479,1.03853297,2812.8,2812.2,0.00290327]
[1645975910480,1.33853297,2812.8,2812.2,0.00290327]
[1645975910682,1.33853297,2812.8,2811.2,0.27272727]
[1645975910683,3.5,2812.5,2811.2,0.27272727]
[1645975910884,5.0,2812.3,2811.2,0.27272727]
[1645975911087,11.02,2812.2,2811.2,0.27272727]
[1645975911279,5.0,2812.0,2811.2,0.27272727]
[1645975911481,5.431,2811.9,2810.6,2.398]
[1645975911681,1.42458013,2810.8,2810.2,0.00504212]
[1645975911880,0.25,2810.7,2809.6,0.90504212]
[1645975912078,0.25,2810.7,2810.0,7.36]
[1645975912757,0.25,2810.7,2810.1,3.8629]
[1645975912943,0.25,2810.7,2810.1,14.8829]
[1645975913143,0.25,2810.7,2810.1,19.8829]
[1645975913348,0.25,2811.4,2810.3,11.3829]
[1645975913550,0.25,2811.4,2810.2,2.01457028]
[1645975913551,0.1421,2812.4,2810.5,11.3829]
[1645975913754,0.1421,2812.8,2810.8,0.01260362]
[1645975913948,10.8935,2812.8,2810.8,0.01260362]
[1645975914549,0.88971,2812.6,2810.8,0.01356362]
[1645975914750,1.32509323,2812.1,2810.8,0.00096]
[1645975914954,75.0,2811.1,2810.8,0.00096]
[1645975915150,75.0,2811.1,2810.4,1.2526813]
[1645975915350,75.0,2811.1,2810.7,0.02184296]
[1645975915751,75.0,2811.1,2811.0,11.3829]
[1645975915955,39.5729,2811.1,2811.0,15.8829]
[1645975916153,39.5729,2811.1,2811.0,14.00297922]
[1645975916154,14.15238647,2811.1,2811.0,14.00297922]
[1645975916357,7.74599454,2811.1,2811.0,18.6139]
[1645975916573,5.46070995,2811.1,2811.0,19.40998212]
[1645975916772,0.25,2811.8,2811.0,18.2187]
[1645975916972,0.00545752,2812.0,2811.6,0.01202711]
[1645975917175,0.00545752,2812.0,2811.1,1.779892]
[1645975917378,0.00545752,2812.0,2811.2,0.00096]
[1645975917674,0.00545752,2812.0,2811.4,0.00545947]
[1645975917675,0.89533821,2812.0,2811.4,0.00545947]
[1645975917873,1.24306509,2811.9,2811.4,0.00545947]
[1645975918073,4.88516509,2811.9,2811.4,0.00545947]
[1645975918273,6.06524617,2811.9,2811.4,0.00545947]
[1645975918475,5.88516509,2811.9,2811.4,0.00545947]
[1645975918674,5.88516509,2811.9,2810.7,0.00096]
[1645975918878,5.88516509,2811.9,2811.4,4.136e-05]
[1645975919282,0.0952,2811.8,2811.4,4.136e-05]
[1645975919482,0.89006,2811.6,2811.4,4.136e-05]
[1645975919682,0.98526,2811.6,2810.4,0.00096]
[1645975919881,1.28526,2811.6,2810.4,0.00096]
[1645975920082,0.25,2811.2,2810.4,0.00096]
[1645975920723,0.25,2811.2,2810.2,0.01008424]
[1645975920920,1.14730268,2810.6,2810.2,0.01008424]
[1645975921124,1.14730268,2810.6,2810.2,0.15238424]
[1645975921125,0.25,2810.5,2810.2,0.15238424]
[1645975921329,0.25,2810.5,2810.2,0.01008424]
[1645975922427,1.12890709,2810.4,2810.2,0.01008424]
[1645975923224,0.25,2810.5,2810.2,8.424e-05]
[1645975923428,0.3,2810.4,2810.2,8.424e-05]
[1645975923627,0.3,2810.4,2810.2,5.638e-05]
[1645975923628,0.731,2810.4,2810.2,5.638e-05]
[1645975924095,2.65409,2810.4,2810.2,5.638e-05]
[1645975924287,3.51199,2810.4,2810.2,5.638e-05]
[1645975924486,3.51199,2810.4,2809.1,0.00096]
[1645975924687,0.1421,2810.3,2809.1,0.00096]
[1645975924888,0.25,2809.9,2809.1,0.00096]
[1645975925087,0.25,2809.9,2809.0,0.27272727]
[1645975925492,1.35224705,2809.8,2809.0,0.27272727]
[1645975925891,1.95224705,2809.8,2809.0,0.27272727]
[1645975926100,1.79434705,2809.8,2809.0,0.27272727]
[1645975926291,1.35224705,2809.8,2809.0,0.27272727]
[1645975926490,1.65224705,2809.8,2809.0,0.27272727]
[1645975926695,1.35224705,2809.8,2809.0,0.27272727]
[1645975927293,1.65224705,2809.8,2809.0,0.27272727]
[1645975927493,0.89063,2809.6,2809.0,0.27272727]
[1645975927739,3.5,2809.5,2809.0,2.727e-05]
[1645975927936,1.01992338,2809.2,2809.0,2.727e-05]
[1645975928132,0.3,2809.2,2809.0,2.727e-05]
[1645975928531,0.3,2809.2,2809.1,0.00547467]
[1645975928732,0.89077,2809.2,2809.1,0.00547467]
[1645975929242,11.02,2809.0,2808.6,7.48e-05]
[1645975929439,3.931,2808.9,2808.0,0.1423]
[1645975929636,3.931,2808.9,2808.1,0.00096]
[1645975929637,0.731,2808.9,2808.1,0.00096]
[1645975929836,5.0,2808.7,2807.7,1.50585794]
[1645975930041,4.231,2808.9,2807.6,2.40828157]
[1645975930042,0.25,2808.5,2807.6,2.40828157]
[1645975930237,1.12664709,2808.2,2807.8,2.649e-05]
[1645975930438,1.85764709,2808.2,2807.8,2.649e-05]
[1645975930839,1.85764709,2808.2,2806.2,0.67783967]
[1645975930840,8.0,2808.0,2806.2,0.67783967]
[1645975931048,8.0,2808.0,2805.7,2.0174291]
[1645975931049,5.0,2807.2,2805.7,2.0174291]
[1645975931241,0.25,2806.8,2805.7,2.0174291]
[1645975931493,0.25,2806.8,2805.7,1.9674291]
[1645975931494,0.89178,2806.6,2805.7,1.9674291]
[1645975931686,3.931,2806.5,2805.7,1.8456291]
[1645975931891,1.50865343,2806.0,2805.7,1.6890291]
[1645975932089,0.0952,2806.0,2805.7,1.6890291]
[1645975932290,0.25,2806.3,2806.0,2.31574505]
[1645975932790,0.25,2806.3,2806.1,1.50657591]
[1645975932988,0.25,2806.3,2806.0,2.31574505]
[1645975932989,0.25,2806.3,2806.2,3.6425]
[1645975933190,0.25,2806.3,2806.2,0.1425]
[1645975933491,0.25,2806.3,2806.0,2.32122429]
[1645975934288,1.18101008,2806.1,2806.0,2.32122429]
[1645975934493,2.3212,2806.0,2805.7,1.6899891]
[1645975934688,0.431,2805.9,2805.7,0.0174291]
[1645975934892,0.431,2805.9,2805.2,0.00096]
[1645975935094,0.431,2805.9,2805.1,0.1424]
[1645975935385,0.431,2805.9,2805.0,0.017653]
[1645975935386,0.89209,2805.6,2805.0,0.017653]
[1645975935576,0.431,2805.5,2805.0,0.017653]
[1645975935774,0.731,2805.5,2805.0,5.3e-05]
[1645975936176,8.5,2805.4,2805.0,5.3e-05]
[1645975936374,8.5,2805.4,2804.5,0.0184223]
[1645975936375,0.89226,2805.0,2804.5,0.0184223]
[1645975936575,0.431,2804.9,2804.4,0.1108223]
[1645975936777,1.78465,2804.6,2803.4,0.1426]
[1645975936976,0.681,2804.5,2803.4,0.1426]
[1645975937178,4.481,2804.5,2803.4,0.1426]
[1645975937376,4.481,2804.5,2803.1,0.1426]
[1645975937377,0.89243,2804.2,2803.1,0.1426]
[1645975937577,0.25,2804.5,2803.1,0.1426]
[1645975938176,0.25,2804.5,2803.0,6.01638424]
[1645975938177,0.431,2804.4,2803.0,6.01638424]
[1645975938379,0.89238,2804.2,2803.6,0.00546371]
[1645975938578,0.431,2804.1,2803.6,0.00546371]
[1645975938777,0.731,2804.1,2803.3,3.61240761]
[1645975938976,0.25,2803.8,2803.3,3.61240761]
[1645975939588,1.14667654,2803.7,2803.3,3.61240761]
[1645975939787,1.14667654,2803.7,2803.4,0.1426]
[1645975940182,1.14667654,2803.7,2803.3,3.61240761]
[1645975940584,0.25,2803.8,2803.3,3.61240761]
[1645975940787,0.25,2803.8,2803.4,3.5]
[1645975940983,0.25,2803.8,2803.4,0.1426]
[1645975941187,0.25,2803.8,2803.4,3.6426]
[1645975941383,0.25,2803.8,2803.5,0.26053935]
[1645975941588,0.25,2803.8,2803.6,0.9048]
[1645975941589,0.0001,2803.8,2803.6,0.9048]
[1645975941786,0.25,2804.5,2803.4,3.82268108]
[1645975941787,0.25,2804.5,2803.8,0.0007]
[1645975941987,0.25,2803.9,2803.8,0.0007]
[1645975942186,0.2672,2805.6,2803.9,11.63096519]
[1645975942393,0.25,2804.9,2804.5,11.58092186]
[1645975942587,0.2672,2805.6,2804.8,5.3629]
[1645975942845,0.25,2805.9,2805.5,0.0123159]
[1645975943042,0.3629,2807.7,2805.6,0.1424]
[1645975943043,0.3629,2807.5,2805.6,0.1424]
[1645975943244,1.03372,2807.6,2805.7,0.8912536]
[1645975943245,0.89132,2807.6,2805.7,0.8912536]
[1645975943443,0.89132,2807.6,2805.7,0.00096]
[1645975943643,0.5734,2807.7,2805.8,0.00096]
[1645975943644,0.431,2807.5,2805.8,0.00096]
[1645975943842,0.431,2807.5,2805.4,0.00096]
[1645975943843,1.2700721,2805.9,2805.4,0.00096]
[1645975944045,1.2700721,2805.9,2804.9,3.57010554]
[1645975944046,1.2700721,2805.9,2805.1,0.00096]
[1645975944344,1.2700721,2805.9,2805.2,0.1425]
[1645975944541,1.2700721,2805.9,2805.0,0.1424]
[1645975944742,1.19168,2806.4,2805.0,0.1424]
[1645975945141,1.19168,2806.4,2805.1,0.00096]
[1645975945345,0.00544717,2805.6,2805.2,0.1424]
[1645975945542,0.00544717,2805.6,2805.2,0.0424]
[1645975945743,0.00544717,2805.6,2805.2,0.1425]
[1645975946044,0.00544717,2805.6,2805.3,0.3629]
[1645975946247,0.00544717,2805.6,2805.4,11.20627801]
[1645975946492,0.1424,2807.0,2805.5,3.8629]
[1645975946685,0.1424,2807.0,2805.7,0.3629]
[1645975946883,0.1424,2807.0,2805.6,3.71653963]
[1645975946884,0.31809443,2807.4,2805.9,0.62841972]
[1645975947085,0.25,2807.4,2806.1,0.3629]
[1645975947285,5.16456544,2808.4,2806.3,11.62703579]
[1645975947286,0.1424,2807.9,2806.3,11.62703579]
[1645975947487,0.1424,2807.9,2806.5,0.3629]
[1645975947684,0.1424,2808.2,2806.6,0.25557402]
[1645975947884,0.1424,2808.2,2806.6,3.50096]
[1645975947885,0.00508783,2806.9,2806.6,3.50096]
[1645975948086,0.25,2807.7,2807.5,0.19619543]
[1645975948286,0.5734,2808.3,2807.5,0.19619543]
[1645975948886,0.431,2808.3,2807.5,0.19619543]
[1645975949090,1.11491049,2808.2,2807.5,0.19619543]
[1645975949290,0.5734,2808.1,2807.5,0.19619543]
[1645975949688,0.8734,2808.1,2807.5,0.19619543]
[1645975949889,12.78456,2808.1,2807.5,0.19619543]
[1645975950093,0.25,2808.0,2807.5,0.19619543]
[1645975950327,0.1424,2807.9,2807.5,0.19619543]
[1645975950728,0.4424,2807.9,2807.5,0.19619543]
[1645975951330,0.25,2807.4,2806.1,0.00096]
[1645975951531,0.25,2807.4,2805.6,0.18008108]
[1645975951532,0.25,2807.4,2806.2,0.00096]
[1645975951734,0.25,2807.4,2806.0,0.00096]
[1645975951931,0.1424,2807.3,2806.0,0.00096]
[1645975952134,0.25,2807.4,2805.6,0.01253942]
[1645975952330,0.25,2806.8,2805.9,0.3629]
[1645975952530,0.25,2806.8,2806.0,0.00096]
[1645975952734,0.25,2806.8,2806.0,3.86386]
[1645975952932,0.25,2806.8,2806.0,0.60401993]
[1645975953130,1.30046286,2806.3,2806.0,0.00096]
[1645975953334,0.3,2806.4,2805.7,0.00096]
[1645975953529,0.89163,2806.6,2805.5,0.00096]
[1645975953731,3.10501108,2806.8,2805.2,0.14336]
[1645975953732,0.25,2806.8,2805.2,0.14336]
[1645975953982,0.25544757,2807.0,2805.6,0.01230621]
[1645975953985,0.25,2806.6,2805.6,0.01230621]
[1645975954183,0.25,2806.6,2805.6,0.37520621]
[1645975954385,0.25,2806.6,2806.0,0.3629]
[1645975954583,0.25,2806.6,2806.0,11.3829]
[1645975954787,0.25,2806.6,2806.2,11.3829]
[1645975955186,0.00544705,2807.0,2806.7,0.3629]
[1645975955390,0.25,2806.8,2806.7,0.3629]
[1645975955585,0.25,2806.8,2806.6,0.75982228]
[1645975955987,0.0001,2806.8,2806.6,11.99669839]
[1645975956190,0.25,2807.7,2807.0,5.0]
[1645975956387,0.1424,2809.2,2807.3,11.3829]
[1645975956686,0.31809443,2808.5,2807.5,11.3829]
[1645975956885,0.25,2808.5,2807.5,0.3629]
[1645975957085,0.25,2808.5,2807.6,0.00096]
[1645975957487,0.25,2808.5,2807.6,0.36386]
[1645975957725,0.25,2808.5,2807.6,0.3629]
[1645975957928,1.43697586,2808.8,2807.7,0.00096]
[1645975958225,3.6424,2809.3,2807.7,0.00096]
[1645975958226,0.25,2809.2,2807.7,0.00096]
[1645975958624,0.43008108,2809.2,2807.7,0.00096]
[1645975958925,1.09298108,2809.2,2807.5,0.00096]
[1645975959129,3.5,2809.1,2807.5,0.00096]
[1645975959327,0.1424,2809.0,2807.5,0.00096]
[1645975959531,11.1624,2809.0,2807.5,0.00096]
[1645975959726,3.5,2808.9,2807.3,0.07106554]
[1645975959931,0.00544641,2808.4,2807.3,0.07106554]
[1645975960128,1.35873054,2808.4,2807.4,0.3629]
[1645975960330,0.1424,2808.3,2807.4,0.3629]
[1645975960537,0.1424,2808.3,2807.5,0.00096]
[1645975961130,0.00544686,2808.0,2807.5,0.00096]
[1645975961330,0.00544686,2808.0,2807.4,0.20342496]
[1645975961581,0.00544686,2808.0,2807.9,11.61566127]
[1645975961775,4.686e-05,2808.0,2807.9,12.6829]
[1645975962177,0.25,2809.2,2808.3,11.3829]
[1645975962377,0.25,2809.9,2808.4,0.00096]
[1645975962577,0.25,2809.9,2808.5,11.3829]
[1645975962774,0.1423,2809.8,2808.6,0.00096]
[1645975963181,0.25,2810.3,2808.9,0.3629]
[1645975963182,0.1423,2810.1,2808.9,0.3629]
[1645975963375,0.25,2810.3,2808.9,0.3629]
[1645975963376,0.25,2810.3,2809.0,0.431]
[1645975963576,7.36,2810.8,2809.1,11.3829]
[1645975963577,3.5,2810.7,2809.1,11.3829]
[1645975963776,3.5,2810.6,2809.2,1.2530527]
[1645975963979,3.8629,2810.6,2808.8,0.1423]
[1645975964179,4.04298108,2810.6,2808.8,0.1423]
[1645975964380,0.1423,2810.5,2808.8,0.1423]
[1645975964781,0.0050903,2809.8,2808.8,11.18646854]
[1645975964982,0.0050903,2809.8,2809.4,0.3629]
[1645975965247,0.0050903,2809.8,2809.6,0.3629]
[1645975965637,0.25,2810.4,2809.6,0.3629]
[1645975965843,0.0050903,2809.8,2809.6,0.3629]
[1645975966037,0.0050903,2809.8,2809.2,0.3629]
[1645975966639,0.0050903,2809.8,2809.2,11.3829]
[1645975966840,0.3923,2810.4,2809.2,11.3829]
[1645975967045,0.25,2810.4,2809.2,11.3829]
[1645975967241,0.1423,2810.3,2809.2,11.3829]
[1645975967644,0.25,2810.4,2809.4,11.3829]
[1645975968041,0.1423,2811.4,2809.4,11.3829]
[1645975968042,0.1423,2811.4,2809.8,11.3829]
[1645975968244,3.5,2811.8,2809.8,11.3829]
[1645975968245,0.1423,2811.7,2809.8,11.3829]
[1645975968449,0.00544654,2810.0,2809.8,0.3629]
[1645975968644,7.5023,2811.3,2810.0,0.01089307]
[1645975968845,3.5,2811.2,2810.0,0.01089307]
[1645975969089,0.1423,2811.1,2810.0,0.01089307]
[1645975969289,1.33870476,2810.3,2810.0,0.01089307]
[1645975969488,0.1423,2811.1,2810.0,0.01089307]
[1645975969489,0.57238108,2811.1,2810.0,0.01089307]
[1645975969890,0.3923,2811.1,2810.0,0.01089307]
[1645975970092,0.25,2811.1,2810.0,0.01089307]
[1645975970492,1.34730353,2811.4,2810.1,0.3629]
[1645975970891,0.1423,2811.7,2810.1,0.3629]
[1645975971299,0.21039443,2811.8,2810.4,11.3829]
[1645975971495,0.21039443,2811.8,2810.6,11.3829]
[1645975971693,0.21039443,2811.8,2810.1,0.3]
[1645975971893,1.07517324,2811.2,2810.0,1.01089307]
[1645975972092,1.07517324,2811.2,2810.1,0.21520863]
[1645975972499,1.07517324,2811.2,2810.0,0.22983136]
[1645975972735,1.07517324,2811.2,2810.1,11.3829]
[1645975972927,1.07517324,2811.2,2810.2,0.24947435]
[1645975973330,0.00544584,2810.7,2810.2,0.24947435]
[1645975973929,0.00544584,2810.7,2810.2,11.3829]
[1645975974433,0.00544599,2810.6,2810.2,11.58477525]
[1645975975037,0.00544599,2810.6,2810.2,0.56477525]
[1645975975435,1.03061923,2811.2,2810.2,11.58477525]
[1645975975635,0.00544604,2810.5,2810.2,11.58477525]
[1645975976480,1.03061923,2811.2,2810.2,11.3829]
[1645975976681,0.06809443,2811.8,2810.2,11.58357195]
[1645975977883,1.19975424,2811.3,2810.2,12.6829]
[1645975978081,1.19975424,2811.3,2810.3,11.56657851]
[1645975978283,0.00544544,2811.1,2810.3,12.56657851]
[1645975978683,0.00544544,2811.1,2810.3,11.20367851]
[1645975978888,1.36039098,2810.6,2810.1,0.25085612]
[1645975979092,1.36039098,2810.6,2810.0,0.01089307]
[1645975980239,1.37612527,2810.1,2810.0,0.01089307]
[1645975981335,0.1423,2810.9,2810.0,0.01089307]
[1645975981731,0.00544532,2810.7,2810.0,0.01089307]
[1645975982531,0.25,2810.4,2810.0,0.01089307]
[1645975982730,1.2776314,2810.2,2810.0,0.01089307]
[1645975983135,0.25,2810.4,2810.0,0.01089307]
[1645975984187,1.57394346,2810.4,2810.0,0.01089307]
[1645975984588,0.25,2810.4,2810.0,9.307e-05]
[1645975984886,0.681,2810.4,2810.0,9.307e-05]
[1645975985083,3.5,2810.3,2810.0,9.307e-05]
[1645975985289,0.5733,2810.2,2810.0,9.307e-05]
[1645975985484,3.5,2810.1,2810.0,9.307e-05]
[1645975985683,4.25338108,2810.1,2810.0,9.307e-05]
[1645975985885,10.68822177,2810.1,2810.0,9.307e-05]
[1645975986084,8.18822177,2810.1,2810.0,9.307e-05]
[1645975986285,18.77722177,2810.1,2810.0,9.307e-05]
[1645975986484,2.75722177,2810.1,2810.0,9.307e-05]
[1645975986691,3.18822177,2810.1,2810.0,9.307e-05]
[1645975987284,19.20822177,2810.1,2810.0,9.307e-05]
[1645975987485,19.20822177,2810.1,2808.1,3.5]
[1645975987486,1.78141,2809.7,2808.1,3.5]
[1645975987738,0.5734,2809.6,2809.5,0.01004936]
[1645975987938,1.4641,2809.6,2809.5,0.01004936]
[1645975988337,2.89929239,2809.6,2809.5,0.01004936]